[Event "Turkish Cup 2022"]
[Site "Sakarya"]
[Date "2022.03.26"]
[Round "2.20"]
[White "Atayman, Evren"]
[Black "Ererdem, Gani Eren"]
[Result "0-1"]
[ECO "A48"]
[WhiteElo "1662"]
[BlackElo "2134"]
[Annotator "ChessBase"]
[PlyCount "78"]
[EventDate "2022.03.25"]
[EventType "swiss"]
[EventCountry "TUR"]
[SourceTitle "playchess.com"]
[Source "ChessBase"]
[SourceQuality "1"]
[TimeControl "5400+30"]

1. d4 {[%emt 0:02:00]} g6 {[%emt 0:01:00]} 2. Nf3 {[%emt 0:00:30]} d6 {[%emt 0:01:30]} 3. e3 {[%emt 0:02:30]} Bg7 {[%emt 0:00:30]} 4. b3 {[%emt 0:01:30]} Nf6 {[%emt 0:05:30]} 5. Bb2 {[%emt 0:01:30]} O-O {[%emt 0:00:30]} 6. Be2 {[%emt 0:01:30]} Nc6 {[%emt 0:00:30]} 7. O-O {[%emt 0:04:30]} e5 {[%emt 0:01:30]} 8. dxe5 {[%emt 0:01:30]} Ng4 {[%emt 0:00:30]} 9. Nbd2 {[%emt 0:02:30]} Ngxe5 {[%emt 0:03:30]} 10. Nxe5 {[%emt 0:00:30]} Nxe5 {[%emt 0:00:00]} 11. Qc1 {[%emt 0:01:30]} Qe7 {[%emt 0:36:00]} 12. Nc4 {[%emt 0:10:30]} Rd8 {[%emt 0:03:30]} 13. Nxe5 {[%emt 0:04:30]} dxe5 {[%emt 0:00:30]} 14. c4 {[%emt 0:02:30]} h5 {[%emt 0:09:30]} 15. Qc3 {[%emt 0:01:30]} Bg4 {[%emt 0:13:30]} 16. f3 {[%emt 0:12:30]} Be6 {[%emt 0:01:29]} 17. Rad1 {[%emt 0:01:30]} Rxd1 {[%emt 0:02:12]} 18. Rxd1 {[%emt 0:00:30]} a5 {[%emt 0:04:10]} 19. c5 {[%emt 0:03:30]} a4 {[%emt 0:01:38]} 20. Bc4 {[%emt 0:06:30]} axb3 {[%emt 0:03:52]} 21. axb3 {[%emt 0:09:30]} Bxc4 {[%emt 0:05:21]} 22. Qxc4 {[%emt 0:00:30]} Ra2 {[%emt 0:00:30]} 23. Qc3 {[%emt 0:00:00]} Kh7 {[%emt 0:00:00]} 24. Ra1 {[%emt 0:01:00]} Rxb2 {[%emt 0:00:11]} 25. Qxb2 {[%emt 0:01:30]} e4 {[%emt 0:00:02]} 26. Qc1 {[%emt 0:00:30]} Bxa1 {[%emt 0:00:11]} 27. Qxa1 {[%emt 0:02:30]} Qxc5 {[%emt 0:01:01]} 28. Qe1 {[%emt 0:02:30]} exf3 {[%emt 0:00:30]} 29. gxf3 {[%emt 0:00:00]} Qd5 {[%emt 0:00:19]} 30. Kg2 {[%emt 0:03:00]} Qxb3 {[%emt 0:00:30]} 31. Qa5 {[%emt 0:01:30]} b6 {[%emt 0:02:48]} 32. Qe5 {[%emt 0:00:30]} c5 {[%emt 0:00:04]} 33. Qc7 {[%emt 0:00:45]} Qe6 {[%emt 0:00:38]} 34. f4 {[%emt 0:00:15]} c4 {[%emt 0:00:29]} 35. e4 {[%emt 0:00:30]} Qxe4+ {[%emt 0:00:30]} 36. Kf2 {[%emt 0:00:30]} Qd4+ {[%emt 0:00:00]} 37. Kg3 {[%emt 0:00:30]} Qe3+ {[%emt 0:00:33]} 38. Kh4 {[%emt 0:00:30]} Qf2+ {[%emt 0:00:12]} 39. Kg5 {[%emt 0:01:28]} Qc5+ {[%emt 0:00:06]} 0-1

[Event "Turkish Cup 2022"]
[Site "Sakarya"]
[Date "2022.03.26"]
[Round "2.21"]
[White "Guven, Oguz Kagan"]
[Black "Oktem, Ege Tuna"]
[Result "1/2-1/2"]
[ECO "A11"]
[WhiteElo "2157"]
[BlackElo "1614"]
[Annotator "ChessBase"]
[PlyCount "104"]
[EventDate "2022.03.25"]
[EventType "swiss"]
[EventCountry "TUR"]
[SourceTitle "playchess.com"]
[Source "ChessBase"]
[SourceQuality "1"]
[TimeControl "5400+30"]

1. Nf3 {[%emt 0:05:00]} d5 {[%emt 0:01:00]} 2. g3 {[%emt 0:00:30]} Nf6 {[%emt 0:00:30]} 3. Bg2 {[%emt 0:00:30]} g6 {[%emt 0:00:30]} 4. b3 {[%emt 0:00:30]} Bg7 {[%emt 0:00:30]} 5. Bb2 {[%emt 0:00:00]} O-O {[%emt 0:00:00]} 6. c4 {[%emt 0:00:00]} c6 {[%emt 0:00:00]} 7. O-O {[%emt 0:00:30]} a5 {[%emt 0:00:00]} 8. Nc3 {[%emt 0:03:30]} Na6 {[%emt 0:04:00]} 9. d4 {[%emt 0:00:30]} Nc7 {[%emt 0:01:30]} 10. Ne5 {[%emt 0:02:30]} h5 {[%emt 0:18:30]} 11. e4 {[%emt 0:05:30]} Nxe4 {[%emt 0:00:30]} 12. Nxe4 {[%emt 0:00:30]} dxe4 {[%emt 0:00:30]} 13. Bxe4 {[%emt 0:00:30]} Bh3 {[%emt 0:00:00]} 14. Re1 {[%emt 0:00:30]} Ne6 {[%emt 0:09:00]} 15. d5 {[%emt 0:03:30]} cxd5 {[%emt 0:02:30]} 16. Bxd5 {[%emt 0:06:30]} Qc7 {[%emt 0:06:30]} 17. Qe2 {[%emt 0:26:30]} Bf5 {[%emt 0:02:30]} 18. Nxf7 {[%emt 0:11:30]} Bxb2 {[%emt 0:00:30]} 19. Nh6+ {[%emt 0:00:30]} Kh7 {[%emt 0:00:00]} 20. Qxb2 {[%emt 0:00:30]} Ng5 {[%emt 0:01:00]} 21. Nxf5 {[%emt 0:01:30]} Rxf5 {[%emt 0:00:00]} 22. f4 {[%emt 0:04:30]} Qc5+ {[%emt 0:00:00]} 23. Kh1 {[%emt 0:00:30]} Rxd5 {[%emt 0:00:30]} 24. cxd5 {[%emt 0:00:00]} Nf3 {[%emt 0:00:30]} 25. Rf1 {[%emt 0:02:00]} Nd4 {[%emt 0:00:30]} 26. Rad1 {[%emt 0:01:30]} Qxd5+ {[%emt 0:01:30]} 27. Qg2 {[%emt 0:00:30]} Qc5 {[%emt 0:00:00]} 28. Qxb7 {[%emt 0:00:30]} Ra7 {[%emt 0:00:00]} 29. Qe4 {[%emt 0:00:30]} Nf5 {[%emt 0:00:30]} 30. Rc1 {[%emt 0:01:30]} Qa3 {[%emt 0:00:30]} 31. Rc6 {[%emt 0:04:11]} Qxa2 {[%emt 0:07:30]} 32. Qe6 {[%emt 0:08:09]} Nd6 {[%emt 0:00:00]} 33. Rb6 {[%emt 0:03:58]} Qb2 {[%emt 0:03:00]} 34. Qe5 {[%emt 0:01:20]} Qd2 {[%emt 0:01:30]} 35. Rb8 {[%emt 0:00:50]} Nf7 {[%emt 0:00:00]} 36. Qe6 {[%emt 0:01:46]} Nh6 {[%emt 0:00:00]} 37. Qe5 {[%emt 0:01:08]} Nf7 {[%emt 0:00:00]} 38. Qe4 {[%emt 0:01:01]} Nd6 {[%emt 0:01:00]} 39. Qe6 {[%emt 0:02:11]} Qc3 {[%emt 0:00:30]} 40. Qg8+ {[%emt 0:00:25]} Kh6 {[%emt 0:00:30]} 41. Qf8+ {[%emt 0:01:12]} Kh7 {[%emt 0:00:30]} 42. Qg8+ {[%emt 0:00:30]} Kh6 {[%emt 0:00:30]} 43. Qh8+ {[%emt 0:00:00]} Qxh8 {[%emt 0:00:00]} 44. Rxh8+ {[%emt 0:00:00]} Kg7 {[%emt 0:00:00]} 45. Rb8 {[%emt 0:00:05]} Nf5 {[%emt 0:00:00]} 46. Ra1 {[%emt 0:00:43]} Rd7 {[%emt 0:00:00]} 47. Ra2 {[%emt 0:02:07]} h4 {[%emt 0:02:30]} 48. gxh4 {[%emt 0:00:30]} Nxh4 {[%emt 0:00:30]} 49. Kg1 {[%emt 0:00:00]} Rd4 {[%emt 0:00:00]} 50. Rxa5 {[%emt 0:00:44]} Rd2 {[%emt 0:00:00]} 51. Kf1 {[%emt 0:02:08]} Nf3 {[%emt 0:00:00]} 52. Re5 {[%emt 0:00:36]} Nxh2+ {[%emt 0:00:00]} 1/2-1/2

[Event "Turkish Cup 2022"]
[Site "Sakarya"]
[Date "2022.03.26"]
[Round "2.22"]
[White "Sakmak, Kutay"]
[Black "Kul, Ozdemir Efe"]
[Result "1/2-1/2"]
[ECO "B06"]
[WhiteElo "1718"]
[BlackElo "2042"]
[Annotator "ChessBase"]
[PlyCount "65"]
[EventDate "2022.03.25"]
[EventType "swiss"]
[EventCountry "TUR"]
[SourceTitle "playchess.com"]
[Source "ChessBase"]
[SourceQuality "1"]
[TimeControl "5400+30"]

1. e4 {[%emt 0:01:00]} g6 {[%emt 0:01:00]} 2. d4 {[%emt 0:00:30]} Bg7 {[%emt 0:00:30]} 3. Nc3 {[%emt 0:00:30]} c6 {[%emt 0:00:30]} 4. Be3 {[%emt 0:00:30]} d6 {[%emt 0:01:30]} 5. Qd2 {[%emt 0:03:30]} Nd7 {[%emt 0:00:30]} 6. f3 {[%emt 0:03:30]} a6 {[%emt 0:04:30]} 7. Bd3 {[%emt 0:07:30]} b5 {[%emt 0:09:30]} 8. Nge2 {[%emt 0:01:30]} Bb7 {[%emt 0:02:30]} 9. Ng3 {[%emt 0:18:30]} Qc7 {[%emt 0:04:30]} 10. Nce2 {[%emt 0:04:30]} e5 {[%emt 0:02:30]} 11. c3 {[%emt 0:01:30]} h5 {[%emt 0:02:30]} 12. O-O {[%emt 0:02:30]} Ngf6 {[%emt 0:03:30]} 13. Nh1 {[%emt 0:05:30]} c5 {[%emt 0:01:30]} 14. a4 {[%emt 0:02:30]} c4 {[%emt 0:04:30]} 15. Bc2 {[%emt 0:00:30]} O-O {[%emt 0:03:30]} 16. Nf2 {[%emt 0:04:30]} Rfe8 {[%emt 0:02:30]} 17. Rfd1 {[%emt 0:01:30]} d5 {[%emt 0:01:30]} 18. dxe5 {[%emt 0:20:49]} Nxe5 {[%emt 0:00:30]} 19. exd5 {[%emt 0:00:49]} Nxd5 {[%emt 0:03:30]} 20. Bd4 {[%emt 0:00:39]} Rad8 {[%emt 0:04:30]} 21. Ne4 {[%emt 0:02:52]} Ne7 {[%emt 0:07:30]} 22. axb5 {[%emt 0:03:16]} axb5 {[%emt 0:01:30]} 23. Qg5 {[%emt 0:02:02]} Nd5 {[%emt 0:09:30]} 24. f4 {[%emt 0:07:12]} Ng4 {[%emt 0:03:30]} 25. Bxg7 {[%emt 0:02:03]} Kxg7 {[%emt 0:00:30]} 26. N4g3 {[%emt 0:02:43]} Nde3 {[%emt 0:13:34]} 27. Nxh5+ {[%emt 0:00:50]} Kf8 {[%emt 0:01:53]} 28. Bxg6 {[%emt 0:00:42]} Qc6 {[%emt 0:00:57]} 29. Be4 {[%emt 0:00:26]} Qxe4 {[%emt 0:01:33]} 30. Qg7+ {[%emt 0:00:30]} Ke7 {[%emt 0:00:30]} 31. Qg5+ {[%emt 0:00:00]} Kf8 {[%emt 0:06:36]} 32. Qg7+ {[%emt 0:00:10]} Ke7 {[%emt 0:00:30]} 33. Qg5+ {[%emt 0:00:00]} 1/2-1/2

[Event "Turkish Cup 2022"]
[Site "Sakarya"]
[Date "2022.03.26"]
[Round "2.23"]
[White "Tarhan, Adar"]
[Black "Kaygisiz, Ozgur Can"]
[Result "0-1"]
[ECO "B81"]
[WhiteElo "2125"]
[BlackElo "1744"]
[Annotator "ChessBase"]
[PlyCount "60"]
[EventDate "2022.03.25"]
[EventType "swiss"]
[EventCountry "TUR"]
[SourceTitle "playchess.com"]
[Source "ChessBase"]
[SourceQuality "1"]
[TimeControl "5400+30"]

1. e4 {[%emt 0:01:00]} c5 {[%emt 0:01:00]} 2. Nf3 {[%emt 0:00:30]} d6 {[%emt 0:00:30]} 3. d4 {[%emt 0:00:30]} cxd4 {[%emt 0:00:00]} 4. Nxd4 {[%emt 0:00:00]} Nf6 {[%emt 0:00:00]} 5. Nc3 {[%emt 0:00:00]} a6 {[%emt 0:00:30]} 6. h3 {[%emt 0:00:00]} e6 {[%emt 0:00:00]} 7. g4 {[%emt 0:01:00]} b5 {[%emt 0:03:00]} 8. g5 {[%emt 0:01:30]} b4 {[%emt 0:03:30]} 9. gxf6 {[%emt 0:00:30]} bxc3 {[%emt 0:00:00]} 10. fxg7 {[%emt 0:00:30]} Bxg7 {[%emt 0:00:00]} 11. b3 {[%emt 0:02:30]} Bb7 {[%emt 0:02:30]} 12. Bg2 {[%emt 0:01:30]} Rg8 {[%emt 0:12:30]} 13. Bf3 {[%emt 0:01:30]} Nd7 {[%emt 0:09:30]} 14. Rg1 {[%emt 0:04:30]} Qh4 {[%emt 0:02:30]} 15. Nxe6 {[%emt 0:03:30]} fxe6 {[%emt 0:00:30]} 16. Bh5+ {[%emt 0:00:30]} Ke7 {[%emt 0:02:30]} 17. Bg4 {[%emt 0:14:30]} Raf8 {[%emt 0:09:30]} 18. Be3 {[%emt 0:03:30]} Bh6 {[%emt 0:01:30]} 19. Qd4 {[%emt 0:01:30]} Bxe3 {[%emt 0:00:30]} 20. Qxe3 {[%emt 0:00:30]} h5 {[%emt 0:00:30]} 21. O-O-O {[%emt 0:00:30]} hxg4 {[%emt 0:00:30]} 22. Qxc3 {[%emt 0:00:30]} Qg5+ {[%emt 0:10:30]} 23. Kb1 {[%emt 0:00:30]} Qc5 {[%emt 0:00:00]} 24. Qg3 {[%emt 0:00:30]} Rxf2 {[%emt 0:02:00]} 25. c3 {[%emt 0:00:30]} Bxe4+ {[%emt 0:00:30]} 26. Ka1 {[%emt 0:00:30]} Rgf8 {[%emt 0:09:30]} 27. b4 {[%emt 0:03:30]} Qe5 {[%emt 0:05:30]} 28. Qh4+ {[%emt 0:00:30]} R8f6 {[%emt 0:02:30]} 29. Rd4 {[%emt 0:00:30]} Qh2 {[%emt 0:01:30]} 30. Qh7+ {[%emt 0:01:30]} Bxh7 {[%emt 0:00:30]} 0-1

[Event "Turkish Cup 2022"]
[Site "Sakarya"]
[Date "2022.03.26"]
[Round "2.25"]
[White "Caputcuoglu, Zeki Berke"]
[Black "Gozubuyukoglu, Selami"]
[Result "1-0"]
[ECO "C47"]
[WhiteElo "2095"]
[BlackElo "1747"]
[Annotator "ChessBase"]
[PlyCount "89"]
[EventDate "2022.03.25"]
[EventType "swiss"]
[EventCountry "TUR"]
[SourceTitle "playchess.com"]
[Source "ChessBase"]
[SourceQuality "1"]
[TimeControl "5400+30"]

1. e4 {[%emt 0:01:00]} e5 {[%emt 0:01:00]} 2. Nf3 {[%emt 0:00:30]} Nc6 {[%emt 0:00:30]} 3. Nc3 {[%emt 0:00:30]} Nf6 {[%emt 0:00:30]} 4. a3 {[%emt 0:00:30]} a6 {[%emt 0:00:30]} 5. d4 {[%emt 0:00:30]} exd4 {[%emt 0:00:30]} 6. Nxd4 {[%emt 0:00:30]} Bc5 {[%emt 0:00:30]} 7. Be3 {[%emt 0:00:00]} Nxd4 {[%emt 0:03:30]} 8. Bxd4 {[%emt 0:00:00]} Bxd4 {[%emt 0:00:00]} 9. Qxd4 {[%emt 0:00:30]} d6 {[%emt 0:00:00]} 10. O-O-O {[%emt 0:00:30]} Qe7 {[%emt 0:03:30]} 11. f4 {[%emt 0:05:30]} O-O {[%emt 0:05:30]} 12. Be2 {[%emt 0:15:30]} Be6 {[%emt 0:15:30]} 13. g4 {[%emt 0:15:30]} c5 {[%emt 0:07:30]} 14. Qxd6 {[%emt 0:01:30]} Qxd6 {[%emt 0:01:30]} 15. Rxd6 {[%emt 0:00:30]} Bxg4 {[%emt 0:00:30]} 16. Rxf6 {[%emt 0:00:30]} Bxe2 {[%emt 0:12:30]} 17. Rf5 {[%emt 0:09:30]} Bg4 {[%emt 0:04:30]} 18. Rxc5 {[%emt 0:00:30]} Rac8 {[%emt 0:02:30]} 19. Rxc8 {[%emt 0:08:30]} Rxc8 {[%emt 0:00:30]} 20. Rg1 {[%emt 0:01:30]} Bf3 {[%emt 0:04:30]} 21. Kd2 {[%emt 0:02:30]} f5 {[%emt 0:05:30]} 22. e5 {[%emt 0:02:30]} Kf7 {[%emt 0:03:30]} 23. Ke3 {[%emt 0:01:30]} Bc6 {[%emt 0:00:30]} 24. Rd1 {[%emt 0:00:30]} Re8 {[%emt 0:02:30]} 25. Rd6 {[%emt 0:02:30]} Ke7 {[%emt 0:03:30]} 26. Kd4 {[%emt 0:04:30]} h6 {[%emt 0:01:30]} 27. Nd5+ {[%emt 0:02:30]} Kf7 {[%emt 0:02:32]} 28. c4 {[%emt 0:03:30]} Rc8 {[%emt 0:04:01]} 29. e6+ {[%emt 0:00:30]} Ke8 {[%emt 0:01:43]} 30. Ke5 {[%emt 0:00:30]} b5 {[%emt 0:02:32]} 31. c5 {[%emt 0:01:30]} g5 {[%emt 0:03:07]} 32. fxg5 {[%emt 0:00:30]} hxg5 {[%emt 0:00:02]} 33. Kxf5 {[%emt 0:00:30]} Rd8 {[%emt 0:03:03]} 34. Rxc6 {[%emt 0:01:11]} Rxd5+ {[%emt 0:00:30]} 35. Kf6 {[%emt 0:00:00]} Rd8 {[%emt 0:00:29]} 36. Rc7 {[%emt 0:00:19]} Rd2 {[%emt 0:01:51]} 37. Rc8+ {[%emt 0:00:30]} Rd8 {[%emt 0:00:30]} 38. Rxd8+ {[%emt 0:00:30]} Kxd8 {[%emt 0:00:30]} 39. Kf7 {[%emt 0:00:30]} Kc7 {[%emt 0:00:30]} 40. e7 {[%emt 0:00:30]} Kc6 {[%emt 0:00:30]} 41. e8=Q+ {[%emt 0:00:00]} Kxc5 {[%emt 0:00:00]} 42. Qe4 {[%emt 0:00:00]} a5 {[%emt 0:00:00]} 43. b4+ {[%emt 0:00:00]} axb4 {[%emt 0:00:05]} 44. axb4+ {[%emt 0:00:00]} Kd6 {[%emt 0:00:30]} 45. Qe6+ {[%emt 0:00:00]} 1-0

[Event "Turkish Cup 2022"]
[Site "Sakarya"]
[Date "2022.03.26"]
[Round "2.27"]
[White "Kilic, Eray"]
[Black "Aydogdu, Aril"]
[Result "1-0"]
[ECO "B34"]
[WhiteElo "2088"]
[BlackElo "1622"]
[Annotator "ChessBase"]
[PlyCount "45"]
[EventDate "2022.03.25"]
[EventType "swiss"]
[EventCountry "TUR"]
[SourceTitle "playchess.com"]
[Source "ChessBase"]
[SourceQuality "1"]
[TimeControl "5400+30"]

1. e4 {[%emt 0:01:00]} c5 {[%emt 0:01:00]} 2. Nf3 {[%emt 0:00:30]} Nc6 {[%emt 0:00:00]} 3. Bb5 {[%emt 0:00:00]} d6 {[%emt 0:00:00]} 4. d4 {[%emt 0:01:00]} cxd4 {[%emt 0:02:30]} 5. Nxd4 {[%emt 0:02:30]} Bd7 {[%emt 0:00:30]} 6. Nc3 {[%emt 0:00:30]} g6 {[%emt 0:01:30]} 7. Be3 {[%emt 0:07:30]} Bg7 {[%emt 0:03:30]} 8. f3 {[%emt 0:02:30]} h5 {[%emt 0:01:30]} 9. Qd2 {[%emt 0:02:30]} Nf6 {[%emt 0:03:30]} 10. O-O-O {[%emt 0:01:30]} Ne5 {[%emt 0:07:30]} 11. f4 {[%emt 0:04:30]} Neg4 {[%emt 0:00:30]} 12. Bg1 {[%emt 0:01:30]} Bh6 {[%emt 0:01:30]} 13. Kb1 {[%emt 0:02:30]} Rc8 {[%emt 0:15:30]} 14. h3 {[%emt 0:04:30]} Ne5 {[%emt 0:00:30]} 15. Be3 {[%emt 0:01:30]} Nc6 {[%emt 0:17:30]} 16. e5 {[%emt 0:03:30]} Nxd4 {[%emt 0:02:30]} 17. Qxd4 {[%emt 0:00:30]} dxe5 {[%emt 0:04:30]} 18. fxe5 {[%emt 0:00:30]} Bxb5 {[%emt 0:02:30]} 19. exf6 {[%emt 0:01:30]} Qxd4 {[%emt 0:03:30]} 20. Bxd4 {[%emt 0:00:30]} Bc6 {[%emt 0:00:30]} 21. fxe7 {[%emt 0:00:30]} Rg8 {[%emt 0:00:30]} 22. Bf6 {[%emt 0:00:00]} Bd7 {[%emt 0:00:30]} 23. Ne4 {[%emt 0:00:00]} 1-0

[Event "Turkish Cup 2022"]
[Site "Sakarya"]
[Date "2022.03.26"]
[Round "2.29"]
[White "Baltaci, Ismail Tarik"]
[Black "Elmas, Mustafa"]
[Result "1-0"]
[ECO "B93"]
[WhiteElo "2033"]
[BlackElo "1614"]
[Annotator "ChessBase"]
[PlyCount "45"]
[EventDate "2022.03.25"]
[EventType "swiss"]
[EventCountry "TUR"]
[SourceTitle "playchess.com"]
[Source "ChessBase"]
[SourceQuality "1"]
[TimeControl "5400+30"]

1. e4 {[%emt 0:01:00]} c5 {[%emt 0:01:00]} 2. Nc3 {[%emt 0:02:30]} a6 {[%emt 0:00:30]} 3. f4 {[%emt 0:00:30]} d6 {[%emt 0:00:00]} 4. Nf3 {[%emt 0:00:30]} Nf6 {[%emt 0:00:00]} 5. d4 {[%emt 0:03:30]} cxd4 {[%emt 0:01:30]} 6. Nxd4 {[%emt 0:00:30]} Qc7 {[%emt 0:01:30]} 7. Bd3 {[%emt 0:00:30]} e5 {[%emt 0:01:30]} 8. Nf3 {[%emt 0:00:30]} Nbd7 {[%emt 0:02:30]} 9. O-O {[%emt 0:02:30]} Be7 {[%emt 0:01:30]} 10. Kh1 {[%emt 0:03:30]} O-O {[%emt 0:05:30]} 11. Qe1 {[%emt 0:02:30]} b5 {[%emt 0:05:30]} 12. Nh4 {[%emt 0:09:30]} Nb6 {[%emt 0:07:30]} 13. fxe5 {[%emt 0:09:30]} dxe5 {[%emt 0:01:30]} 14. Nf5 {[%emt 0:11:30]} Bxf5 {[%emt 0:14:30]} 15. exf5 {[%emt 0:00:30]} Bb4 {[%emt 0:03:30]} 16. Qg3 {[%emt 0:03:30]} Kh8 {[%emt 0:05:30]} 17. Ne4 {[%emt 0:01:30]} Rac8 {[%emt 0:06:30]} 18. Nxf6 {[%emt 0:06:30]} gxf6 {[%emt 0:00:00]} 19. Qh4 {[%emt 0:00:00]} Be7 {[%emt 0:00:00]} 20. Rf3 {[%emt 0:00:00]} Rg8 {[%emt 0:02:30]} 21. Qxh7+ {[%emt 0:01:30]} Kxh7 {[%emt 0:00:30]} 22. Rh3+ {[%emt 0:00:30]} Kg7 {[%emt 0:00:30]} 23. Bh6+ {[%emt 0:00:00]} 1-0

[Event "Turkish Cup 2022"]
[Site "Sakarya"]
[Date "2022.03.26"]
[Round "2.30"]
[White "Karacor, Kemal"]
[Black "Yavuz, Efe Metehan"]
[Result "0-1"]
[ECO "D39"]
[WhiteElo "1700"]
[BlackElo "2054"]
[Annotator "ChessBase"]
[PlyCount "72"]
[EventDate "2022.03.25"]
[EventType "swiss"]
[EventCountry "TUR"]
[SourceTitle "playchess.com"]
[Source "ChessBase"]
[SourceQuality "1"]
[TimeControl "5400+30"]

1. d4 {[%emt 0:01:00]} d5 {[%emt 0:01:00]} 2. c4 {[%emt 0:00:30]} e6 {[%emt 0:00:30]} 3. Nf3 {[%emt 0:00:30]} Nf6 {[%emt 0:00:00]} 4. Bg5 {[%emt 0:00:30]} Bb4+ {[%emt 0:04:00]} 5. Nc3 {[%emt 0:00:30]} dxc4 {[%emt 0:00:30]} 6. Bxf6 {[%emt 0:01:30]} Qxf6 {[%emt 0:00:30]} 7. e3 {[%emt 0:00:30]} b5 {[%emt 0:01:30]} 8. a3 {[%emt 0:00:30]} Bxc3+ {[%emt 0:01:30]} 9. bxc3 {[%emt 0:00:00]} Nd7 {[%emt 0:08:30]} 10. Be2 {[%emt 0:03:00]} Bb7 {[%emt 0:04:30]} 11. O-O {[%emt 0:00:30]} O-O {[%emt 0:00:30]} 12. Ne1 {[%emt 0:03:30]} Nb6 {[%emt 0:10:30]} 13. Qd2 {[%emt 0:02:30]} Rfd8 {[%emt 0:01:30]} 14. Bf3 {[%emt 0:00:30]} Bxf3 {[%emt 0:01:30]} 15. Nxf3 {[%emt 0:00:30]} c5 {[%emt 0:02:30]} 16. Qb2 {[%emt 0:04:30]} a6 {[%emt 0:04:30]} 17. Rfd1 {[%emt 0:00:30]} cxd4 {[%emt 0:00:30]} 18. exd4 {[%emt 0:00:30]} Na4 {[%emt 0:01:30]} 19. Qc2 {[%emt 0:01:30]} Qg6 {[%emt 0:01:30]} 20. Rdc1 {[%emt 0:02:30]} Qxc2 {[%emt 0:00:30]} 21. Rxc2 {[%emt 0:00:00]} Rd5 {[%emt 0:01:30]} 22. Ne5 {[%emt 0:00:00]} f6 {[%emt 0:00:30]} 23. Nc6 {[%emt 0:00:30]} Rd6 {[%emt 0:00:30]} 24. Nb4 {[%emt 0:00:30]} Rad8 {[%emt 0:01:30]} 25. f4 {[%emt 0:01:30]} Kf7 {[%emt 0:03:30]} 26. Kf2 {[%emt 0:00:00]} a5 {[%emt 0:02:30]} 27. Na2 {[%emt 0:00:00]} e5 {[%emt 0:00:30]} 28. fxe5 {[%emt 0:02:30]} fxe5 {[%emt 0:00:30]} 29. Rb1 {[%emt 0:00:30]} Rd5 {[%emt 0:02:30]} 30. Nc1 {[%emt 0:12:30]} exd4 {[%emt 0:00:30]} 31. cxd4 {[%emt 0:00:30]} Rf5+ {[%emt 0:02:30]} 32. Ke3 {[%emt 0:08:30]} Re8+ {[%emt 0:00:30]} 33. Kd2 {[%emt 0:00:30]} Rf2+ {[%emt 0:00:00]} 34. Kd1 {[%emt 0:00:00]} Rf1+ {[%emt 0:00:00]} 35. Kd2 {[%emt 0:00:00]} c3+ {[%emt 0:00:30]} 36. Kd3 {[%emt 0:05:30]} Rd1+ {[%emt 0:00:30]} 0-1

[Event "Turkish Cup 2022"]
[Site "Sakarya"]
[Date "2022.03.26"]
[Round "2.33"]
[White "Koc, Ilkay"]
[Black "Ulu, Ekrem"]
[Result "1-0"]
[ECO "A06"]
[WhiteElo "1995"]
[BlackElo "1692"]
[Annotator "ChessBase"]
[PlyCount "55"]
[EventDate "2022.03.25"]
[EventType "swiss"]
[EventCountry "TUR"]
[SourceTitle "playchess.com"]
[Source "ChessBase"]
[SourceQuality "1"]
[TimeControl "5400+30"]

1. d4 {[%emt 0:01:00]} d5 {[%emt 0:02:00]} 2. c4 {[%emt 0:00:30]} c6 {[%emt 0:00:30]} 3. Nf3 {[%emt 0:00:30]} Nf6 {[%emt 0:00:00]} 4. e3 {[%emt 0:00:00]} e6 {[%emt 0:11:00]} 5. Bd3 {[%emt 0:00:00]} Bd6 {[%emt 0:03:30]} 6. b3 {[%emt 0:00:30]} Nbd7 {[%emt 0:01:30]} 7. Bb2 {[%emt 0:00:30]} b6 {[%emt 0:00:00]} 8. Nbd2 {[%emt 0:00:30]} Bb7 {[%emt 0:00:00]} 9. O-O {[%emt 0:00:30]} O-O {[%emt 0:00:30]} 10. Ne5 {[%emt 0:00:30]} c5 {[%emt 0:19:30]} 11. f4 {[%emt 0:00:00]} Ne4 {[%emt 0:04:30]} 12. cxd5 {[%emt 0:03:00]} exd5 {[%emt 0:00:30]} 13. Nxe4 {[%emt 0:00:30]} dxe4 {[%emt 0:00:30]} 14. Bc4 {[%emt 0:00:00]} Nf6 {[%emt 0:02:30]} 15. Ng4 {[%emt 0:10:00]} Be7 {[%emt 0:14:30]} 16. Qe2 {[%emt 0:07:30]} Nxg4 {[%emt 0:08:30]} 17. Qxg4 {[%emt 0:00:30]} Bf6 {[%emt 0:00:00]} 18. Rad1 {[%emt 0:00:30]} Qe7 {[%emt 0:00:00]} 19. Ba3 {[%emt 0:01:30]} Rad8 {[%emt 0:03:30]} 20. dxc5 {[%emt 0:02:30]} bxc5 {[%emt 0:00:30]} 21. Qf5 {[%emt 0:17:30]} Rxd1 {[%emt 0:04:30]} 22. Rxd1 {[%emt 0:01:30]} Rd8 {[%emt 0:03:30]} 23. Rxd8+ {[%emt 0:02:30]} Qxd8 {[%emt 0:00:00]} 24. Qxc5 {[%emt 0:00:30]} h6 {[%emt 0:03:53]} 25. Qh5 {[%emt 0:12:30]} Qd7 {[%emt 0:04:54]} 26. h3 {[%emt 0:00:30]} Bc3 {[%emt 0:05:01]} 27. Kh2 {[%emt 0:00:30]} Ba5 {[%emt 0:01:55]} 28. Qxa5 {[%emt 0:00:30]} 1-0

[Event "Turkish Cup 2022"]
[Site "Sakarya"]
[Date "2022.03.26"]
[Round "2.34"]
[White "Temizer, Umut"]
[Black "Ilcin, Murat Veysi"]
[Result "1-0"]
[ECO "C50"]
[WhiteElo "1972"]
[BlackElo "1588"]
[Annotator "ChessBase"]
[PlyCount "51"]
[EventDate "2022.03.25"]
[EventType "swiss"]
[EventCountry "TUR"]
[SourceTitle "playchess.com"]
[Source "ChessBase"]
[SourceQuality "1"]
[TimeControl "5400+30"]

1. e4 {[%emt 0:01:00]} e5 {[%emt 0:01:00]} 2. Nf3 {[%emt 0:00:30]} Nc6 {[%emt 0:00:30]} 3. Bc4 {[%emt 0:00:00]} Be7 {[%emt 0:00:30]} 4. d4 {[%emt 0:00:00]} exd4 {[%emt 0:00:30]} 5. Nxd4 {[%emt 0:00:30]} d6 {[%emt 0:01:30]} 6. O-O {[%emt 0:01:30]} Nf6 {[%emt 0:00:30]} 7. Nc3 {[%emt 0:01:30]} Ne5 {[%emt 0:02:30]} 8. Be2 {[%emt 0:04:30]} O-O {[%emt 0:01:30]} 9. Bf4 {[%emt 0:09:30]} c6 {[%emt 0:02:30]} 10. a4 {[%emt 0:06:30]} a5 {[%emt 0:03:30]} 11. Qd2 {[%emt 0:03:30]} Qb6 {[%emt 0:02:30]} 12. h3 {[%emt 0:06:30]} Bd7 {[%emt 0:01:30]} 13. Rfd1 {[%emt 0:05:30]} Rad8 {[%emt 0:00:30]} 14. Qe3 {[%emt 0:04:30]} Rfe8 {[%emt 0:01:30]} 15. Nf5 {[%emt 0:02:30]} Qc7 {[%emt 0:11:30]} 16. Nxe7+ {[%emt 0:05:30]} Rxe7 {[%emt 0:00:30]} 17. Bg5 {[%emt 0:01:30]} Be6 {[%emt 0:09:30]} 18. f4 {[%emt 0:11:30]} Nc4 {[%emt 0:02:30]} 19. Bxc4 {[%emt 0:02:30]} Bxc4 {[%emt 0:00:30]} 20. Qd4 {[%emt 0:00:30]} d5 {[%emt 0:10:30]} 21. e5 {[%emt 0:06:30]} c5 {[%emt 0:01:30]} 22. Qf2 {[%emt 0:00:30]} d4 {[%emt 0:11:30]} 23. exf6 {[%emt 0:00:30]} Ree8 {[%emt 0:01:30]} 24. fxg7 {[%emt 0:02:30]} Rc8 {[%emt 0:05:30]} 25. Nb5 {[%emt 0:00:30]} Qd7 {[%emt 0:03:30]} 26. Re1 {[%emt 0:02:30]} 1-0